[Event "Late-Titled-Tuesday-Blitz-February-06-2024"]
[Site "Chess.com"]
[Date "2024.02.06"]
[Round "10"]
[White "Bkmzzzzz"]
[Black "Chessdude1987"]
[Result "0-1"]
[WhiteElo "2404"]
[BlackElo "2329"]
[TimeControl "180+1"]
[EndTime "15:54:07 PST"]
[Termination "Chessdude1987 won by resignation"]

1. e4 {[%clk 0:02:59.3]} 1... e6 {[%clk 0:03:00.1]} 2. Nf3 {[%clk 0:02:59.5]}
2... d5 {[%clk 0:03:00.3]} 3. exd5 {[%clk 0:03:00.1]} 3... exd5 {[%clk
0:03:00.2]} 4. d4 {[%clk 0:03:00.8]} 4... Nc6 {[%clk 0:02:59]} 5. Bb5 {[%clk
0:03:00.4]} 5... Bg4 {[%clk 0:02:58.7]} 6. O-O {[%clk 0:02:56.2]} 6... Bd6
{[%clk 0:02:52.8]} 7. c4 {[%clk 0:02:54.5]} 7... a6 {[%clk 0:02:46.1]} 8. cxd5
{[%clk 0:02:28]} 8... axb5 {[%clk 0:02:45.8]} 9. dxc6 {[%clk 0:02:28.6]} 9...
bxc6 {[%clk 0:02:46]} 10. h3 {[%clk 0:02:25.4]} 10... Bxf3 {[%clk 0:02:43.2]}
11. Qxf3 {[%clk 0:02:26.3]} 11... Ne7 {[%clk 0:02:43.2]} 12. Nc3 {[%clk
0:02:20.3]} 12... O-O {[%clk 0:02:40]} 13. Ne4 {[%clk 0:02:15.1]} 13... Nd5
{[%clk 0:02:37.8]} 14. Bd2 {[%clk 0:02:12.3]} 14... Qd7 {[%clk 0:02:32.7]} 15.
a3 {[%clk 0:02:12]} 15... h6 {[%clk 0:02:26.1]} 16. Rac1 {[%clk 0:02:10.6]}
16... f5 {[%clk 0:02:25.2]} 17. Nc5 {[%clk 0:02:04.8]} 17... Bxc5 {[%clk
0:02:25]} 18. Rxc5 {[%clk 0:02:05.7]} 18... Rf6 {[%clk 0:02:21.4]} 19. Rfc1
{[%clk 0:02:05.8]} 19... Re8 {[%clk 0:02:18.3]} 20. Bf4 {[%clk 0:01:46.1]} 20...
g5 {[%clk 0:02:12.4]} 21. Be5 {[%clk 0:01:46]} 21... Rg6 {[%clk 0:02:12.6]} 22.
Qh5 {[%clk 0:01:35.3]} 22... Ree6 {[%clk 0:01:57.5]} 23. R1c2 {[%clk 0:01:22.4]}
23... Kh7 {[%clk 0:01:48.8]} 24. Rc1 {[%clk 0:01:21.6]} 24... f4 {[%clk
0:01:43.2]} 25. Qg4 {[%clk 0:01:11.2]} 25... Qe8 {[%clk 0:01:39.7]} 26. Qf5
{[%clk 0:01:07]} 26... Ne7 {[%clk 0:01:29.2]} 27. Qe4 {[%clk 0:01:05.6]} 27...
Nd5 {[%clk 0:01:24.1]} 28. Qf5 {[%clk 0:01:01.7]} 28... Ne7 {[%clk 0:01:17.1]}
29. Qd3 {[%clk 0:01:01.6]} 29... Nd5 {[%clk 0:01:06.9]} 30. b4 {[%clk
0:00:47.5]} 30... h5 {[%clk 0:01:06.1]} 31. Qf5 {[%clk 0:00:45.2]} 31... Kh6
{[%clk 0:01:04.2]} 32. Qe4 {[%clk 0:00:42]} 32... Qf7 {[%clk 0:00:58.4]} 33. f3
{[%clk 0:00:40.5]} 33... g4 {[%clk 0:00:56.4]} 34. hxg4 {[%clk 0:00:39.1]} 34...
hxg4 {[%clk 0:00:55.3]} 35. Kf2 {[%clk 0:00:37.7]} 35... g3+ {[%clk 0:00:45.1]}
36. Ke2 {[%clk 0:00:36.5]} 36... Kg5 {[%clk 0:00:44.3]} 37. Rh1 {[%clk
0:00:32.3]} 37... Rh6 {[%clk 0:00:44.3]} 38. Rxh6 {[%clk 0:00:27.4]} 38... Rxh6
{[%clk 0:00:44.2]} 39. Rc1 {[%clk 0:00:28]} 39... Rh2 {[%clk 0:00:40.3]} 40. Rg1
{[%clk 0:00:25.3]} 40... Nc3+ {[%clk 0:00:38.2]} 0-1

[Event "Late-Titled-Tuesday-Blitz-February-06-2024"]
[Site "Chess.com"]
[Date "2024.02.06"]
[Round "10"]
[White "BebeBonito2022"]
[Black "Attacker_2006"]
[Result "0-1"]
[WhiteElo "2319"]
[BlackElo "2481"]
[TimeControl "180+1"]
[EndTime "15:54:13 PST"]
[Termination "Attacker_2006 won on time"]

1. d4 {[%clk 0:03:00.9]} 1... Nf6 {[%clk 0:02:56.2]} 2. c4 {[%clk 0:03:01.1]}
2... e6 {[%clk 0:02:54.2]} 3. Nc3 {[%clk 0:03:01.4]} 3... d5 {[%clk 0:02:52.6]}
4. cxd5 {[%clk 0:03:01.4]} 4... exd5 {[%clk 0:02:51.3]} 5. Bg5 {[%clk
0:03:01.5]} 5... Bb4 {[%clk 0:02:48.7]} 6. e3 {[%clk 0:03:01.4]} 6... c5 {[%clk
0:02:45.7]} 7. dxc5 {[%clk 0:02:47]} 7... Qa5 {[%clk 0:02:39.3]} 8. Bxf6 {[%clk
0:02:42.6]} 8... gxf6 {[%clk 0:02:36.6]} 9. Ne2 {[%clk 0:02:40.9]} 9... Qxc5
{[%clk 0:02:30.2]} 10. a3 {[%clk 0:02:36]} 10... Bxc3+ {[%clk 0:02:26.3]} 11.
Nxc3 {[%clk 0:02:36.7]} 11... Be6 {[%clk 0:02:18.7]} 12. Rc1 {[%clk 0:02:34.7]}
12... Nc6 {[%clk 0:02:05.1]} 13. Bb5 {[%clk 0:01:59.3]} 13... Rg8 {[%clk
0:01:51]} 14. O-O {[%clk 0:01:12.3]} 14... Bh3 {[%clk 0:01:41.1]} 15. g3 {[%clk
0:00:45.8]} 15... Bxf1 {[%clk 0:01:32.6]} 16. Qxf1 {[%clk 0:00:46.4]} 16... a6
{[%clk 0:01:21]} 17. Ba4 {[%clk 0:00:36.4]} 17... Kf8 {[%clk 0:01:05.7]} 18. Ne2
{[%clk 0:00:30]} 18... Qd6 {[%clk 0:00:58.7]} 19. Bxc6 {[%clk 0:00:23.1]} 19...
bxc6 {[%clk 0:00:57.2]} 20. Nd4 {[%clk 0:00:23.3]} 20... c5 {[%clk 0:00:49.1]}
21. Nf5 {[%clk 0:00:23.4]} 21... Qe5 {[%clk 0:00:47.4]} 22. Qd3 {[%clk
0:00:20.4]} 22... Rg5 {[%clk 0:00:35.3]} 23. Nh6 {[%clk 0:00:09.1]} 23... Qe4
{[%clk 0:00:23.1]} 24. Qc3 {[%clk 0:00:01.8]} 24... Kg7 {[%clk 0:00:16]} 0-1

[Event "Late-Titled-Tuesday-Blitz-February-06-2024"]
[Site "Chess.com"]
[Date "2024.02.06"]
[Round "10"]
[White "Konavets"]
[Black "rasmussvane"]
[Result "1-0"]
[WhiteElo "3120"]
[BlackElo "2960"]
[TimeControl "180+1"]
[EndTime "15:54:15 PST"]
[Termination "Konavets won on time"]

1. e4 {[%clk 0:02:23.2]} 1... e5 {[%clk 0:02:55.4]} 2. Nf3 {[%clk 0:02:18.4]}
2... Nc6 {[%clk 0:02:55.8]} 3. Bb5 {[%clk 0:02:18.5]} 3... a6 {[%clk 0:02:56.1]}
4. Ba4 {[%clk 0:02:18.8]} 4... Nf6 {[%clk 0:02:56.4]} 5. Qe2 {[%clk 0:02:18.9]}
5... Be7 {[%clk 0:02:49.6]} 6. O-O {[%clk 0:02:18.8]} 6... b5 {[%clk 0:02:46.1]}
7. Bb3 {[%clk 0:02:18.6]} 7... O-O {[%clk 0:02:46.5]} 8. c3 {[%clk 0:02:19.2]}
8... d5 {[%clk 0:02:34.2]} 9. d3 {[%clk 0:02:19.5]} 9... Bb7 {[%clk 0:02:08.5]}
10. Nbd2 {[%clk 0:02:11.8]} 10... Re8 {[%clk 0:02:02.1]} 11. Rd1 {[%clk
0:02:09.9]} 11... Bf8 {[%clk 0:01:59.6]} 12. Nf1 {[%clk 0:02:10.1]} 12... h6
{[%clk 0:01:59.9]} 13. Ng3 {[%clk 0:02:08.6]} 13... Qd7 {[%clk 0:01:57]} 14. h3
{[%clk 0:02:08.6]} 14... Rad8 {[%clk 0:01:56.4]} 15. Be3 {[%clk 0:02:08.9]}
15... Na5 {[%clk 0:01:46.7]} 16. Bc2 {[%clk 0:01:42.8]} 16... c5 {[%clk
0:01:46.3]} 17. Nh2 {[%clk 0:01:43.2]} 17... d4 {[%clk 0:01:43.5]} 18. Bd2
{[%clk 0:01:40.6]} 18... Nc6 {[%clk 0:01:38.5]} 19. Qf3 {[%clk 0:01:39]} 19...
dxc3 {[%clk 0:01:20]} 20. bxc3 {[%clk 0:01:38.4]} 20... b4 {[%clk 0:01:19.8]}
21. Nf5 {[%clk 0:01:11.6]} 21... bxc3 {[%clk 0:01:13.8]} 22. Bxc3 {[%clk
0:01:11.3]} 22... Kh7 {[%clk 0:01:10.7]} 23. Bb3 {[%clk 0:01:09.4]} 23... Nd4
{[%clk 0:00:48.3]} 24. Bxd4 {[%clk 0:01:09.4]} 24... exd4 {[%clk 0:00:44.2]} 25.
Re1 {[%clk 0:01:05.2]} 25... Bd6 {[%clk 0:00:40]} 26. Nxd6 {[%clk 0:00:57.9]}
26... Qxd6 {[%clk 0:00:38.5]} 27. Bxf7 {[%clk 0:00:38.7]} 27... Rf8 {[%clk
0:00:38.9]} 28. Qf5+ {[%clk 0:00:38.8]} 28... Kh8 {[%clk 0:00:39.3]} 29. Qg6
{[%clk 0:00:37.3]} 29... Qf4 {[%clk 0:00:20.4]} 30. g3 {[%clk 0:00:34.5]} 30...
Qd2 {[%clk 0:00:20.7]} 31. Nf3 {[%clk 0:00:30.4]} 31... Qxd3 {[%clk 0:00:18.8]}
32. Ne5 {[%clk 0:00:30.9]} 32... Qd2 {[%clk 0:00:15.8]} 33. Qf5 {[%clk
0:00:31.2]} 33... Rxf7 {[%clk 0:00:03.3]} 34. Nxf7+ {[%clk 0:00:31.6]} 34... Kg8
{[%clk 0:00:03.9]} 35. Nxd8 {[%clk 0:00:32.2]} 1-0

[Event "Late-Titled-Tuesday-Blitz-February-06-2024"]
[Site "Chess.com"]
[Date "2024.02.06"]
[Round "10"]
[White "kai_nov"]
[Black "frequentblunders"]
[Result "1-0"]
[WhiteElo "2309"]
[BlackElo "2160"]
[TimeControl "180+1"]
[EndTime "15:54:16 PST"]
[Termination "kai_nov won by checkmate"]

1. d4 {[%clk 0:03:00.9]} 1... e6 {[%clk 0:02:59.5]} 2. Nc3 {[%clk 0:02:57.8]}
2... c5 {[%clk 0:02:59.8]} 3. d5 {[%clk 0:02:57.3]} 3... Nf6 {[%clk 0:02:58.8]}
4. e4 {[%clk 0:02:57.2]} 4... d6 {[%clk 0:02:57.3]} 5. Nf3 {[%clk 0:02:53.4]}
5... e5 {[%clk 0:02:47.6]} 6. Be2 {[%clk 0:02:41.5]} 6... Be7 {[%clk 0:02:44]}
7. O-O {[%clk 0:02:32.4]} 7... a6 {[%clk 0:02:40.4]} 8. a4 {[%clk 0:02:31.7]}
8... O-O {[%clk 0:02:37.4]} 9. Nd2 {[%clk 0:02:25.1]} 9... Ne8 {[%clk
0:02:21.9]} 10. Nc4 {[%clk 0:02:17]} 10... f5 {[%clk 0:02:14.8]} 11. f4 {[%clk
0:02:14]} 11... fxe4 {[%clk 0:02:06.7]} 12. Nxe4 {[%clk 0:01:45.9]} 12... exf4
{[%clk 0:01:32.1]} 13. Bxf4 {[%clk 0:01:46.8]} 13... Bf5 {[%clk 0:01:28.8]} 14.
Ng3 {[%clk 0:01:41]} 14... Nd7 {[%clk 0:01:15.4]} 15. Nxf5 {[%clk 0:01:37.7]}
15... Rxf5 {[%clk 0:01:16.3]} 16. Bg4 {[%clk 0:01:36.5]} 16... Rf8 {[%clk
0:01:11.5]} 17. Be6+ {[%clk 0:01:34]} 17... Kh8 {[%clk 0:01:11]} 18. Qg4 {[%clk
0:01:03.4]} 18... Ndf6 {[%clk 0:00:58.7]} 19. Qh3 {[%clk 0:00:56.5]} 19... b5
{[%clk 0:00:56.6]} 20. Ne3 {[%clk 0:00:47.4]} 20... Nc7 {[%clk 0:00:46.1]} 21.
Nf5 {[%clk 0:00:43.7]} 21... Ncxd5 {[%clk 0:00:32.4]} 22. Bh6 {[%clk 0:00:14.6]}
22... gxh6 {[%clk 0:00:27.7]} 23. Qxh6 {[%clk 0:00:13.9]} 23... Rg8 {[%clk
0:00:18.7]} 24. Bxg8 {[%clk 0:00:11.2]} 24... Nxg8 {[%clk 0:00:10.7]} 25. Qg7#
{[%clk 0:00:10.9]} 1-0

[Event "Late-Titled-Tuesday-Blitz-February-06-2024"]
[Site "Chess.com"]
[Date "2024.02.06"]
[Round "10"]
[White "YouShallNotPass001"]
[Black "chenxiaoyuer"]
[Result "0-1"]
[WhiteElo "2487"]
[BlackElo "2751"]
[TimeControl "180+1"]
[EndTime "15:54:22 PST"]
[Termination "chenxiaoyuer won by checkmate"]

1. Nf3 {[%clk 0:03:00.9]} 1... Nf6 {[%clk 0:02:59.1]} 2. e3 {[%clk 0:03:01.8]}
2... g6 {[%clk 0:02:58.8]} 3. c4 {[%clk 0:03:02.7]} 3... Bg7 {[%clk 0:02:59.3]}
4. Be2 {[%clk 0:03:03]} 4... O-O {[%clk 0:03:00.2]} 5. O-O {[%clk 0:03:03.6]}
5... d6 {[%clk 0:03:00.3]} 6. Qc2 {[%clk 0:03:04.5]} 6... e5 {[%clk 0:02:59]} 7.
d3 {[%clk 0:03:04.1]} 7... a5 {[%clk 0:02:53]} 8. a3 {[%clk 0:03:01.7]} 8... Re8
{[%clk 0:02:51.5]} 9. Nbd2 {[%clk 0:03:01.6]} 9... Nbd7 {[%clk 0:02:49.5]} 10.
b3 {[%clk 0:03:01.6]} 10... Nc5 {[%clk 0:02:28]} 11. Bb2 {[%clk 0:03:01]} 11...
Bf5 {[%clk 0:02:25]} 12. b4 {[%clk 0:02:57.2]} 12... axb4 {[%clk 0:02:05.4]} 13.
axb4 {[%clk 0:02:58.1]} 13... Ncd7 {[%clk 0:01:59.4]} 14. e4 {[%clk 0:02:52.4]}
14... Bg4 {[%clk 0:01:54.4]} 15. h3 {[%clk 0:02:52.1]} 15... Bxf3 {[%clk
0:01:53.9]} 16. Bxf3 {[%clk 0:02:47.1]} 16... Nf8 {[%clk 0:01:53.6]} 17. g3
{[%clk 0:02:46.1]} 17... Ne6 {[%clk 0:01:52.8]} 18. Nb3 {[%clk 0:02:45.6]} 18...
Qd7 {[%clk 0:01:50.7]} 19. Bg2 {[%clk 0:02:45.3]} 19... h5 {[%clk 0:01:48.1]}
20. h4 {[%clk 0:02:43.7]} 20... c6 {[%clk 0:01:45]} 21. Bh3 {[%clk 0:02:41.5]}
21... Qe7 {[%clk 0:01:39.9]} 22. c5 {[%clk 0:02:39.6]} 22... Ng4 {[%clk
0:01:31.7]} 23. Rxa8 {[%clk 0:02:32.2]} 23... Rxa8 {[%clk 0:01:30.2]} 24. Ra1
{[%clk 0:02:32.2]} 24... Rd8 {[%clk 0:01:23.3]} 25. Bxg4 {[%clk 0:02:13.2]}
25... hxg4 {[%clk 0:01:22.4]} 26. Qe2 {[%clk 0:02:13.9]} 26... f5 {[%clk
0:01:14.3]} 27. h5 {[%clk 0:02:03.3]} 27... Qg5 {[%clk 0:01:05.6]} 28. hxg6
{[%clk 0:02:01.9]} 28... f4 {[%clk 0:01:05.3]} 29. d4 {[%clk 0:01:50.6]} 29...
Qh5 {[%clk 0:01:02.1]} 30. Qc4 {[%clk 0:01:48.1]} 30... d5 {[%clk 0:00:57.3]}
31. exd5 {[%clk 0:01:49]} 31... cxd5 {[%clk 0:00:57.4]} 32. Qf1 {[%clk
0:01:35.3]} 32... Ng5 {[%clk 0:00:56.5]} 33. Qg2 {[%clk 0:01:31.8]} 33... Nh3+
{[%clk 0:00:48.1]} 34. Kf1 {[%clk 0:01:27.4]} 34... f3 {[%clk 0:00:43]} 35. Qh1
{[%clk 0:01:26.8]} 35... Qxg6 {[%clk 0:00:42.4]} 36. Ke1 {[%clk 0:01:21.8]}
36... Qc2 {[%clk 0:00:38.4]} 37. Nd2 {[%clk 0:01:19.4]} 37... Qxb2 {[%clk
0:00:37.9]} 38. Rb1 {[%clk 0:01:18.4]} 38... Qxd4 {[%clk 0:00:38.2]} 39. Qf1
{[%clk 0:01:18]} 39... e4 {[%clk 0:00:37.2]} 40. Rb3 {[%clk 0:01:16.8]} 40...
Re8 {[%clk 0:00:35.5]} 41. Kd1 {[%clk 0:01:16.2]} 41... e3 {[%clk 0:00:34.2]}
42. fxe3 {[%clk 0:01:17.1]} 42... Rxe3 {[%clk 0:00:34.1]} 43. Kc2 {[%clk
0:01:16.5]} 43... Rxb3 {[%clk 0:00:33.2]} 44. Nxb3 {[%clk 0:01:17.4]} 44... Qc4+
{[%clk 0:00:33.6]} 45. Qxc4 {[%clk 0:01:16.8]} 45... dxc4 {[%clk 0:00:34.5]} 46.
Nd2 {[%clk 0:01:13.8]} 46... f2 {[%clk 0:00:33.5]} 47. b5 {[%clk 0:01:12.6]}
47... Kf7 {[%clk 0:00:32]} 48. c6 {[%clk 0:00:59.9]} 48... bxc6 {[%clk 0:00:32]}
49. b6 {[%clk 0:00:59.8]} 49... Be5 {[%clk 0:00:31.4]} 50. Nf1 {[%clk
0:00:56.4]} 50... Ke6 {[%clk 0:00:29.8]} 51. Ne3 {[%clk 0:00:56.9]} 51... Bxg3
{[%clk 0:00:29.6]} 52. Kd2 {[%clk 0:00:55.7]} 52... Bf4 {[%clk 0:00:28.2]} 53.
Ke2 {[%clk 0:00:56]} 53... Bxe3 {[%clk 0:00:28.7]} 54. b7 {[%clk 0:00:56]} 54...
Ba7 {[%clk 0:00:28.9]} 55. Kf1 {[%clk 0:00:54.3]} 55... Bb8 {[%clk 0:00:29.1]}
56. Kg2 {[%clk 0:00:54.4]} 56... c3 {[%clk 0:00:29.6]} 57. Kf1 {[%clk
0:00:54.6]} 57... c2 {[%clk 0:00:30.5]} 58. Kg2 {[%clk 0:00:54.9]} 58... f1=Q+
{[%clk 0:00:28.9]} 59. Kxf1 {[%clk 0:00:54.2]} 59... c1=Q+ {[%clk 0:00:29.8]}
60. Kg2 {[%clk 0:00:54.9]} 60... Qg1# {[%clk 0:00:28.4]} 0-1

[Event "Late-Titled-Tuesday-Blitz-February-06-2024"]
[Site "Chess.com"]
[Date "2024.02.06"]
[Round "10"]
[White "Seochesspie"]
[Black "dennisodessa"]
[Result "1/2-1/2"]
[WhiteElo "2777"]
[BlackElo "2608"]
[TimeControl "180+1"]
[EndTime "15:54:26 PST"]
[Termination "Game drawn by repetition"]

1. e4 {[%clk 0:03:00.9]} 1... e6 {[%clk 0:02:59.5]} 2. d4 {[%clk 0:03:00.5]}
2... d5 {[%clk 0:02:59.3]} 3. Nc3 {[%clk 0:03:00.1]} 3... Bb4 {[%clk 0:02:58.7]}
4. e5 {[%clk 0:02:59.5]} 4... c5 {[%clk 0:02:59.1]} 5. a3 {[%clk 0:02:59.6]}
5... Ba5 {[%clk 0:02:58]} 6. b4 {[%clk 0:02:58]} 6... cxd4 {[%clk 0:02:57.8]} 7.
Nb5 {[%clk 0:02:58.2]} 7... Bc7 {[%clk 0:02:57.3]} 8. f4 {[%clk 0:02:48.9]} 8...
Bd7 {[%clk 0:02:53.9]} 9. Nf3 {[%clk 0:02:47.6]} 9... Ne7 {[%clk 0:02:50.3]} 10.
Nfxd4 {[%clk 0:02:36.7]} 10... O-O {[%clk 0:02:46]} 11. Nxc7 {[%clk 0:02:36.6]}
11... Qxc7 {[%clk 0:02:46]} 12. Be3 {[%clk 0:02:34.1]} 12... Ba4 {[%clk
0:02:45.1]} 13. Bd3 {[%clk 0:02:32.7]} 13... Nbc6 {[%clk 0:02:45.2]} 14. Nxc6
{[%clk 0:02:20.3]} 14... Qxc6 {[%clk 0:02:42.6]} 15. O-O {[%clk 0:02:18.2]}
15... Bb5 {[%clk 0:02:37.1]} 16. Bc5 {[%clk 0:02:15.6]} 16... Rfe8 {[%clk
0:02:36.1]} 17. Qe2 {[%clk 0:02:07.9]} 17... Bxd3 {[%clk 0:02:33.6]} 18. cxd3
{[%clk 0:02:08.2]} 18... b6 {[%clk 0:02:30.8]} 19. Bxe7 {[%clk 0:02:07.4]} 19...
Rxe7 {[%clk 0:02:30.6]} 20. Rfc1 {[%clk 0:02:07.9]} 20... Qb7 {[%clk 0:02:25.9]}
21. Rc3 {[%clk 0:02:02.5]} 21... Rc7 {[%clk 0:02:24.8]} 22. Rac1 {[%clk
0:02:02.7]} 22... Rac8 {[%clk 0:02:24.9]} 23. Qd2 {[%clk 0:01:59.7]} 23... g6
{[%clk 0:02:10.8]} 24. g3 {[%clk 0:01:51.5]} 24... h5 {[%clk 0:02:09.6]} 25. Kf2
{[%clk 0:01:51.2]} 25... Kf8 {[%clk 0:01:54.3]} 26. R1c2 {[%clk 0:01:49.1]}
26... Ke7 {[%clk 0:01:53]} 27. Qc1 {[%clk 0:01:49.2]} 27... Kd7 {[%clk
0:01:52.9]} 28. Ke3 {[%clk 0:01:41.6]} 28... Rxc3 {[%clk 0:01:52.8]} 29. Rxc3
{[%clk 0:01:41.6]} 29... Rxc3 {[%clk 0:01:53.7]} 30. Qxc3 {[%clk 0:01:42]} 30...
Qc6 {[%clk 0:01:54.6]} 31. Qxc6+ {[%clk 0:01:35.4]} 31... Kxc6 {[%clk
0:01:55.5]} 32. a4 {[%clk 0:01:35.9]} 32... a5 {[%clk 0:01:51.6]} 33. bxa5
{[%clk 0:01:36]} 33... bxa5 {[%clk 0:01:52.3]} 34. d4 {[%clk 0:01:36.9]} 34...
Kd7 {[%clk 0:01:51.7]} 35. Kf3 {[%clk 0:01:37.1]} 35... Ke7 {[%clk 0:01:21.1]}
36. Kg2 {[%clk 0:01:36.6]} 36... f6 {[%clk 0:01:11.5]} 37. exf6+ {[%clk
0:01:23.1]} 37... Kxf6 {[%clk 0:01:12.4]} 38. Kf3 {[%clk 0:01:23.8]} 38... Ke7
{[%clk 0:00:51.9]} 39. h3 {[%clk 0:01:23.3]} 39... Kf6 {[%clk 0:00:22.3]} 40. g4
{[%clk 0:01:23.4]} 40... hxg4+ {[%clk 0:00:21.9]} 41. hxg4 {[%clk 0:01:23.9]}
41... Kf7 {[%clk 0:00:20.9]} 42. Kg3 {[%clk 0:01:23.4]} 42... Kg7 {[%clk
0:00:21.3]} 43. Kh4 {[%clk 0:01:17.3]} 43... Kf6 {[%clk 0:00:21.4]} 44. Kh3
{[%clk 0:01:11.8]} 44... Kf7 {[%clk 0:00:21.7]} 45. Kg2 {[%clk 0:01:12.2]} 45...
Kg7 {[%clk 0:00:22.3]} 46. Kf1 {[%clk 0:01:12.6]} 46... Kf7 {[%clk 0:00:22.5]}
47. Ke1 {[%clk 0:01:13]} 47... Kf6 {[%clk 0:00:23.2]} 48. Ke2 {[%clk 0:01:12.3]}
48... Kf7 {[%clk 0:00:23.3]} 49. Kd2 {[%clk 0:01:12.5]} 49... Kg7 {[%clk
0:00:24.2]} 50. Ke3 {[%clk 0:01:11.8]} 50... Kf7 {[%clk 0:00:24.1]} 51. Kf3
{[%clk 0:01:11.6]} 51... Kg7 {[%clk 0:00:24.5]} 52. Kg3 {[%clk 0:01:11.9]} 52...
Kf7 {[%clk 0:00:25.1]} 53. Kh3 {[%clk 0:01:11.6]} 53... Kg7 {[%clk 0:00:25.3]}
54. Kg2 {[%clk 0:01:07.1]} 54... Kf7 {[%clk 0:00:25.2]} 55. Kf3 {[%clk 0:01:07]}
55... Kg7 {[%clk 0:00:25.5]} 56. Ke3 {[%clk 0:01:07.2]} 56... Kf7 {[%clk
0:00:25.7]} 57. Ke2 {[%clk 0:01:07.6]} 57... Kg7 {[%clk 0:00:25.2]} 58. Kf2
{[%clk 0:01:07.9]} 58... Kf7 {[%clk 0:00:24.9]} 59. Kg3 {[%clk 0:01:08.4]} 59...
Kg7 {[%clk 0:00:25.1]} 60. Kh4 {[%clk 0:01:08.9]} 60... Kf6 {[%clk 0:00:25.5]}
61. Kh3 {[%clk 0:01:09.4]} 61... Kf7 {[%clk 0:00:25.6]} 62. Kg3 {[%clk
0:01:09.6]} 1/2-1/2

[Event "Late-Titled-Tuesday-Blitz-February-06-2024"]
[Site "Chess.com"]
[Date "2024.02.06"]
[Round "10"]
[White "Payyappat"]
[Black "Ducke13"]
[Result "1-0"]
[WhiteElo "2539"]
[BlackElo "2318"]
[TimeControl "180+1"]
[EndTime "15:54:26 PST"]
[Termination "Payyappat won on time"]

1. e4 {[%clk 0:03:00.9]} 1... c5 {[%clk 0:02:57.1]} 2. Nf3 {[%clk 0:03:00.4]}
2... d6 {[%clk 0:02:57.7]} 3. d4 {[%clk 0:03:00.8]} 3... cxd4 {[%clk 0:02:58.6]}
4. Nxd4 {[%clk 0:03:01.7]} 4... Nf6 {[%clk 0:02:58.8]} 5. Nc3 {[%clk 0:03:02]}
5... a6 {[%clk 0:02:59.6]} 6. h4 {[%clk 0:03:00.5]} 6... e5 {[%clk 0:02:55.6]}
7. Nb3 {[%clk 0:03:00]} 7... Be6 {[%clk 0:02:55.2]} 8. f4 {[%clk 0:02:58.5]}
8... exf4 {[%clk 0:02:51.2]} 9. Bxf4 {[%clk 0:02:59.4]} 9... Nc6 {[%clk
0:02:51.6]} 10. Qd2 {[%clk 0:02:59]} 10... Ne5 {[%clk 0:02:50.6]} 11. O-O-O
{[%clk 0:02:57.2]} 11... Nfd7 {[%clk 0:02:50.7]} 12. g3 {[%clk 0:02:54.3]} 12...
Be7 {[%clk 0:02:50]} 13. Nd4 {[%clk 0:02:50.7]} 13... O-O {[%clk 0:02:29]} 14.
Bh3 {[%clk 0:02:49.4]} 14... Bxh3 {[%clk 0:02:24.6]} 15. Rxh3 {[%clk 0:02:50.3]}
15... Rc8 {[%clk 0:02:06.3]} 16. Nf5 {[%clk 0:02:46.2]} 16... Rc6 {[%clk
0:02:04.1]} 17. Nd5 {[%clk 0:02:30.3]} 17... Bf6 {[%clk 0:01:58.8]} 18. Nxf6+
{[%clk 0:02:28.4]} 18... Nxf6 {[%clk 0:01:56.8]} 19. Bxe5 {[%clk 0:02:26.1]}
19... Nxe4 {[%clk 0:01:52.3]} 20. Qd4 {[%clk 0:02:17.9]} 20... Rxc2+ {[%clk
0:01:32.8]} 21. Kxc2 {[%clk 0:01:39.4]} 21... Qc8+ {[%clk 0:01:31.2]} 22. Kb3
{[%clk 0:00:45.7]} 22... Qxf5 {[%clk 0:01:28.6]} 23. Bxg7 {[%clk 0:00:44.7]}
23... Nc5+ {[%clk 0:01:21.2]} 24. Ka3 {[%clk 0:00:41.8]} 24... Qxh3 {[%clk
0:01:15.6]} 25. Bxf8 {[%clk 0:00:40.1]} 25... Qxg3+ {[%clk 0:01:11.5]} 26. b3
{[%clk 0:00:39.3]} 26... Kxf8 {[%clk 0:01:08.6]} 27. Qxd6+ {[%clk 0:00:38.1]}
27... Qxd6 {[%clk 0:01:08.1]} 28. Rxd6 {[%clk 0:00:39]} 28... Kg7 {[%clk
0:00:17.8]} 29. Rb6 {[%clk 0:00:35.1]} 29... f5 {[%clk 0:00:15.6]} 30. Kb4
{[%clk 0:00:34.1]} 30... Nd3+ {[%clk 0:00:11.3]} 31. Kc3 {[%clk 0:00:32.9]}
31... Nc5 {[%clk 0:00:06.4]} 32. Kd4 {[%clk 0:00:30.2]} 32... f4 {[%clk
0:00:01.5]} 33. Kxc5 {[%clk 0:00:28]} 33... f3 {[%clk 0:00:01.9]} 34. Rb4 {[%clk
0:00:27.7]} 1-0

[Event "Late-Titled-Tuesday-Blitz-February-06-2024"]
[Site "Chess.com"]
[Date "2024.02.06"]
[Round "10"]
[White "Pachonpower"]
[Black "lluiss"]
[Result "1-0"]
[WhiteElo "2296"]
[BlackElo "2157"]
[TimeControl "180+1"]
[EndTime "15:54:26 PST"]
[Termination "Pachonpower won on time"]

1. e4 {[%clk 0:02:59.7]} 1... e6 {[%clk 0:02:43.9]} 2. c4 {[%clk 0:02:58.7]}
2... c5 {[%clk 0:02:26.3]} 3. Nc3 {[%clk 0:02:52.8]} 3... Nc6 {[%clk 0:02:25.7]}
4. Nf3 {[%clk 0:02:45.5]} 4... Nf6 {[%clk 0:02:22.8]} 5. g3 {[%clk 0:02:43.8]}
5... a6 {[%clk 0:02:14.4]} 6. Bg2 {[%clk 0:02:42.7]} 6... d6 {[%clk 0:02:14.6]}
7. O-O {[%clk 0:02:33.1]} 7... Be7 {[%clk 0:02:14.7]} 8. d3 {[%clk 0:02:28.3]}
8... O-O {[%clk 0:02:14.5]} 9. Re1 {[%clk 0:02:15.4]} 9... Ne5 {[%clk
0:02:12.9]} 10. Nxe5 {[%clk 0:02:14]} 10... dxe5 {[%clk 0:02:12.5]} 11. Qc2
{[%clk 0:02:14.7]} 11... Nd7 {[%clk 0:02:09.2]} 12. Be3 {[%clk 0:02:13.6]} 12...
Bg5 {[%clk 0:02:04.1]} 13. f4 {[%clk 0:02:06.9]} 13... exf4 {[%clk 0:02:02.6]}
14. gxf4 {[%clk 0:02:07.8]} 14... Bh4 {[%clk 0:02:01.1]} 15. Rf1 {[%clk
0:02:03.9]} 15... Rb8 {[%clk 0:01:50]} 16. Rf3 {[%clk 0:01:48.1]} 16... b6
{[%clk 0:01:48.2]} 17. Raf1 {[%clk 0:01:43.4]} 17... Bb7 {[%clk 0:01:47.6]} 18.
Rh3 {[%clk 0:01:42.8]} 18... Bf6 {[%clk 0:01:44.8]} 19. a4 {[%clk 0:01:41.4]}
19... Bd4 {[%clk 0:01:37.9]} 20. Bxd4 {[%clk 0:01:39.9]} 20... cxd4 {[%clk
0:01:36.9]} 21. Ne2 {[%clk 0:01:37.6]} 21... Nf6 {[%clk 0:01:33.1]} 22. Rff3
{[%clk 0:01:37]} 22... Qd6 {[%clk 0:01:19.7]} 23. e5 {[%clk 0:01:35]} 23... Qb4
{[%clk 0:01:11.2]} 24. exf6 {[%clk 0:01:34.1]} 24... Bxf3 {[%clk 0:01:10.5]} 25.
Bxf3 {[%clk 0:01:30.7]} 25... b5 {[%clk 0:00:57.7]} 26. fxg7 {[%clk 0:01:17.5]}
26... Rfc8 {[%clk 0:00:55.5]} 27. axb5 {[%clk 0:01:14.9]} 27... axb5 {[%clk
0:00:54.6]} 28. Be4 {[%clk 0:01:13.3]} 28... bxc4 {[%clk 0:00:48.7]} 29. dxc4
{[%clk 0:00:48.7]} 29... Rxc4 {[%clk 0:00:37.6]} 30. Bxh7+ {[%clk 0:00:47.8]}
30... Kxg7 {[%clk 0:00:36.6]} 31. Rg3+ {[%clk 0:00:45.4]} 31... Kf6 {[%clk
0:00:32.9]} 32. Qe4 {[%clk 0:00:40.9]} 32... Rb5 {[%clk 0:00:14.4]} 33. f5
{[%clk 0:00:37.8]} 33... Qe1+ {[%clk 0:00:10]} 34. Kg2 {[%clk 0:00:36.6]} 34...
Rxb2 {[%clk 0:00:07.6]} 35. Qh4+ {[%clk 0:00:35.4]} 35... Ke5 {[%clk 0:00:03.1]}
36. Qf4+ {[%clk 0:00:34.6]} 36... Kd5 {[%clk 0:00:02.2]} 37. Qf3+ {[%clk
0:00:33.7]} 1-0